[Event "Titled Tuesday Blitz December 20 Late 2022"]
[White "Bas Mas, Jose Joaquin"]
[Black "Omelja, Artem"]
[WhiteFideId "22219064"]
[BlackFideId "14119846"]
[WhiteElo "2233"]
[BlackElo "2404"]
[Result "1/2-1/2"]
[Round "02"]
[TimeControl "180+1"]
[Date "2022.12.21"]
[WhiteClock "0:00:28"]
[BlackClock "0:00:20"]

1. e4 {[%clk 0:03:00]}  c5 {[%clk 0:02:54]} 2. Nf3 {[%clk 0:03:00]}  d6 {[%clk 0:02:51]} 3. d4 {[%clk 0:03:00]}  cxd4 {[%clk 0:02:51]} 4. Nxd4 {[%clk 0:03:01]}  Nf6 {[%clk 0:02:50]} 5. Nc3 {[%clk 0:03:01]}  a6 {[%clk 0:02:51]} 6. h3 {[%clk 0:03:01]}  e5 {[%clk 0:02:51]} 7. Nde2 {[%clk 0:03:00]}  Be7 {[%clk 0:02:52]} 8. g4 {[%clk 0:02:59]}  O-O {[%clk 0:02:48]} 9. Bg2 {[%clk 0:02:59]}  Nc6 {[%clk 0:02:47]} 10. Be3 {[%clk 0:02:56]}  Be6 {[%clk 0:02:30]} 11. O-O {[%clk 0:02:54]}  b5 {[%clk 0:02:30]} 12. a4 {[%clk 0:02:46]}  b4 {[%clk 0:02:26]} 13. Nd5 {[%clk 0:02:46]}  Bxd5 {[%clk 0:02:20]} 14. exd5 {[%clk 0:02:46]}  Na5 {[%clk 0:02:20]} 15. b3 {[%clk 0:02:43]}  Nb7 {[%clk 0:02:17]} 16. Ng3 {[%clk 0:02:35]}  Re8 {[%clk 0:02:12]} 17. Nf5 {[%clk 0:02:04]}  Bf8 {[%clk 0:02:12]} 18. Bg5 {[%clk 0:01:59]}  Nc5 {[%clk 0:02:12]} 19. Kh1 {[%clk 0:01:52]}  Ncd7 {[%clk 0:02:11]} 20. Qd2 {[%clk 0:01:45]}  Qc7 {[%clk 0:02:11]} 21. Qxb4 {[%clk 0:01:30]}  Qxc2 {[%clk 0:01:46]} 22. Rac1 {[%clk 0:01:29]}  Qb2 {[%clk 0:01:40]} 23. Rb1 {[%clk 0:01:24]}  Qa2 {[%clk 0:01:36]} 24. Ra1 {[%clk 0:01:20]}  Qc2 {[%clk 0:01:36]} 25. Rac1 {[%clk 0:01:07]}  Qa2 {[%clk 0:01:21]} 26. Ra1 {[%clk 0:01:07]}  Qe2 {[%clk 0:01:21]} 27. Rae1 {[%clk 0:00:58]}  Qd3 {[%clk 0:01:19]} 28. Rd1 {[%clk 0:00:52]}  Rab8 {[%clk 0:01:19]} 29. Qxb8 {[%clk 0:00:48]}  Qxf1+ {[%clk 0:01:18]} 30. Bxf1 {[%clk 0:00:45]}  Rxb8 {[%clk 0:01:19]} 31. Bxa6 {[%clk 0:00:45]}  Rxb3 {[%clk 0:01:18]} 32. Bb5 {[%clk 0:00:45]}  h6 {[%clk 0:01:11]} 33. Bxf6 {[%clk 0:00:41]}  Nxf6 {[%clk 0:01:09]} 34. Kg2 {[%clk 0:00:42]}  g6 {[%clk 0:01:08]} 35. Ne3 {[%clk 0:00:40]}  h5 {[%clk 0:01:03]} 36. Ra1 {[%clk 0:00:38]}  hxg4 {[%clk 0:01:01]} 37. hxg4 {[%clk 0:00:37]}  Bh6 {[%clk 0:00:58]} 38. Bc6 {[%clk 0:00:35]}  Bxe3 {[%clk 0:00:36]} 39. fxe3 {[%clk 0:00:35]}  Rb2+ {[%clk 0:00:36]} 40. Kf3 {[%clk 0:00:33]}  Rb6 {[%clk 0:00:23]} 41. a5 {[%clk 0:00:33]}  Ra6 {[%clk 0:00:24]} 42. Bb7 {[%clk 0:00:33]}  Ra7 {[%clk 0:00:24]} 43. a6 {[%clk 0:00:34]}  Nd7 {[%clk 0:00:23]} 44. Rc1 {[%clk 0:00:32]}  Nc5 {[%clk 0:00:23]} 45. Rxc5 {[%clk 0:00:32]}  dxc5 {[%clk 0:00:24]} 46. d6 {[%clk 0:00:33]}  Kf8 {[%clk 0:00:24]} 47. Ke4 {[%clk 0:00:31]}  Ke8 {[%clk 0:00:24]} 48. Kd5 {[%clk 0:00:31]}  Kd7 {[%clk 0:00:25]} 49. Kxc5 {[%clk 0:00:32]}  f5 {[%clk 0:00:21]} 50. gxf5 {[%clk 0:00:32]}  gxf5 {[%clk 0:00:22]} 51. Kb6 {[%clk 0:00:32]}  Rxa6+ {[%clk 0:00:22]} 52. Kxa6 {[%clk 0:00:29]}  Kxd6 {[%clk 0:00:23]} 53. Kb5 {[%clk 0:00:29]}  e4 {[%clk 0:00:20]} 54. Kc4 {[%clk 0:00:28]}  Ke5 {[%clk 0:00:20]} 1/2-1/2


[Site "https://www.chess.com"]

[Event "Titled Tuesday Blitz December 20 Late 2022"]
[White "Begmuratov, Khumoyun"]
[Black "Moksh Amit Doshi"]
[WhiteFideId "14210207"]
[BlackFideId "25064967"]
[WhiteElo "2267"]
[BlackElo "2297"]
[Result "1-0"]
[Round "02"]
[TimeControl "180+1"]
[Date "2022.12.21"]
[WhiteClock "0:02:03"]
[BlackClock "0:01:41"]

1. e4 {[%clk 0:03:00]}  c5 {[%clk 0:02:52]} 2. Nc3 {[%clk 0:03:00]}  d6 {[%clk 0:02:49]} 3. Bb5+ {[%clk 0:02:58]}  Bd7 {[%clk 0:02:47]} 4. Bxd7+ {[%clk 0:02:58]}  Qxd7 {[%clk 0:02:48]} 5. d3 {[%clk 0:02:57]}  g6 {[%clk 0:02:47]} 6. Be3 {[%clk 0:02:54]}  Bg7 {[%clk 0:02:47]} 7. Qd2 {[%clk 0:02:55]}  Nc6 {[%clk 0:02:46]} 8. Nge2 {[%clk 0:02:55]}  e6 {[%clk 0:02:44]} 9. O-O {[%clk 0:02:55]}  Nge7 {[%clk 0:02:45]} 10. Bh6 {[%clk 0:02:55]}  O-O {[%clk 0:02:44]} 11. Bxg7 {[%clk 0:02:55]}  Kxg7 {[%clk 0:02:45]} 12. f4 {[%clk 0:02:53]}  f5 {[%clk 0:02:45]} 13. Rae1 {[%clk 0:02:52]}  Rae8 {[%clk 0:02:43]} 14. Ng3 {[%clk 0:02:52]}  Nd4 {[%clk 0:02:41]} 15. Nce2 {[%clk 0:02:50]}  Nec6 {[%clk 0:02:32]} 16. c3 {[%clk 0:02:48]}  Nxe2+ {[%clk 0:02:32]} 17. Qxe2 {[%clk 0:02:48]}  e5 {[%clk 0:02:28]} 18. exf5 {[%clk 0:02:41]}  exf4 {[%clk 0:02:26]} 19. Qg4 {[%clk 0:02:40]}  Kg8 {[%clk 0:01:50]} 20. Rxe8 {[%clk 0:02:33]}  Rxe8 {[%clk 0:01:51]} 21. Qxf4 {[%clk 0:02:33]}  Ne5 {[%clk 0:01:51]} 22. d4 {[%clk 0:02:31]}  cxd4 {[%clk 0:01:51]} 23. cxd4 {[%clk 0:02:31]}  Nc4 {[%clk 0:01:43]} 24. fxg6 {[%clk 0:02:10]}  hxg6 {[%clk 0:01:42]} 25. Qg5 {[%clk 0:02:04]}  Qg7 {[%clk 0:01:41]} 26. Qd5+ {[%clk 0:02:03]} 1-0


[Site "https://www.chess.com"]

[Event "Titled Tuesday Blitz December 20 Late 2022"]
[White "Bellissimo, Joseph F."]
[Black "Kohler, Aran"]
[WhiteFideId "2609843"]
[BlackFideId "1002856"]
[WhiteElo "2103"]
[BlackElo "2340"]
[Result "1-0"]
[Round "02"]
[TimeControl "180+1"]
[Date "2022.12.21"]
[WhiteClock "0:02:07"]
[BlackClock "0:00:40"]

1. e4 {[%clk 0:02:59]}  c6 {[%clk 0:02:58]} 2. d4 {[%clk 0:02:59]}  d5 {[%clk 0:02:58]} 3. e5 {[%clk 0:03:00]}  c5 {[%clk 0:02:57]} 4. dxc5 {[%clk 0:03:00]}  e6 {[%clk 0:02:55]} 5. a3 {[%clk 0:02:59]}  Bxc5 {[%clk 0:02:54]} 6. b4 {[%clk 0:03:00]}  Bb6 {[%clk 0:02:46]} 7. Nf3 {[%clk 0:03:00]}  Ne7 {[%clk 0:02:43]} 8. Bd3 {[%clk 0:03:00]}  Ng6 {[%clk 0:02:41]} 9. h4 {[%clk 0:03:00]}  Nc6 {[%clk 0:02:40]} 10. Bb2 {[%clk 0:02:56]}  O-O {[%clk 0:02:35]} 11. g3 {[%clk 0:02:54]}  Qc7 {[%clk 0:02:34]} 12. Qe2 {[%clk 0:02:52]}  f6 {[%clk 0:02:21]} 13. exf6 {[%clk 0:02:52]}  gxf6 {[%clk 0:02:22]} 14. Bxg6 {[%clk 0:02:49]}  hxg6 {[%clk 0:02:21]} 15. h5 {[%clk 0:02:50]}  g5 {[%clk 0:02:18]} 16. h6 {[%clk 0:02:46]}  e5 {[%clk 0:02:10]} 17. b5 {[%clk 0:02:41]}  Ne7 {[%clk 0:02:04]} 18. Nxg5 {[%clk 0:02:40]}  fxg5 {[%clk 0:02:02]} 19. h7+ {[%clk 0:02:40]}  Kf7 {[%clk 0:01:50]} 20. h8=Q {[%clk 0:02:30]}  Rxh8 {[%clk 0:01:49]} 21. Rxh8 {[%clk 0:02:29]}  Ba5+ {[%clk 0:01:29]} 22. Nd2 {[%clk 0:02:26]}  Bxd2+ {[%clk 0:01:24]} 23. Kxd2 {[%clk 0:02:25]}  d4 {[%clk 0:01:10]} 24. Rh7+ {[%clk 0:02:19]}  Ke6 {[%clk 0:01:07]} 25. Bxd4 {[%clk 0:02:17]}  Qa5+ {[%clk 0:01:01]} 26. Bc3 {[%clk 0:02:17]}  Qd8+ {[%clk 0:01:01]} 27. Kc1 {[%clk 0:02:17]}  Ng6 {[%clk 0:00:52]} 28. Qc4+ {[%clk 0:02:10]}  Qd5 {[%clk 0:00:42]} 29. Qg4+ {[%clk 0:02:09]}  Kd6 {[%clk 0:00:40]} 30. Bb4+ {[%clk 0:02:07]} 1-0


[Site "https://www.chess.com"]

[Event "Titled Tuesday Blitz December 20 Late 2022"]
[White "Bolanos, Fernando"]
[Black "Pein, Jonathan"]
[WhiteFideId "3304094"]
[BlackFideId "417092"]
[WhiteElo "2166"]
[BlackElo "2225"]
[Result "0-1"]
[Round "02"]
[TimeControl "180+1"]
[Date "2022.12.21"]
[WhiteClock "0:01:57"]
[BlackClock "0:02:00"]

1. e4 {[%clk 0:02:40]}  e5 {[%clk 0:02:57]} 2. Nf3 {[%clk 0:02:40]}  d6 {[%clk 0:02:58]} 3. c4 {[%clk 0:02:36]}  c5 {[%clk 0:02:56]} 4. Nc3 {[%clk 0:02:37]}  g6 {[%clk 0:02:57]} 5. Bd3 {[%clk 0:02:37]}  Bg7 {[%clk 0:02:58]} 6. Bc2 {[%clk 0:02:38]}  Ne7 {[%clk 0:02:58]} 7. O-O {[%clk 0:02:38]}  Nbc6 {[%clk 0:02:58]} 8. Nd5 {[%clk 0:02:39]}  O-O {[%clk 0:02:57]} 9. d3 {[%clk 0:02:39]}  h6 {[%clk 0:02:57]} 10. Ba4 {[%clk 0:02:37]}  Bg4 {[%clk 0:02:54]} 11. h3 {[%clk 0:02:36]}  Bxf3 {[%clk 0:02:52]} 12. Qxf3 {[%clk 0:02:36]}  Nd4 {[%clk 0:02:52]} 13. Qg4 {[%clk 0:02:32]}  Nec6 {[%clk 0:02:49]} 14. Be3 {[%clk 0:02:31]}  a6 {[%clk 0:02:43]} 15. Rab1 {[%clk 0:02:30]}  Rb8 {[%clk 0:02:41]} 16. Bxc6 {[%clk 0:02:26]}  bxc6 {[%clk 0:02:37]} 17. Nc3 {[%clk 0:02:26]}  Qe8 {[%clk 0:02:25]} 18. Kh1 {[%clk 0:02:22]}  f5 {[%clk 0:02:22]} 19. Qd1 {[%clk 0:02:16]}  f4 {[%clk 0:02:17]} 20. Bxd4 {[%clk 0:02:16]}  cxd4 {[%clk 0:02:18]} 21. Na4 {[%clk 0:02:14]}  f3 {[%clk 0:02:18]} 22. g3 {[%clk 0:02:12]}  c5 {[%clk 0:02:11]} 23. b3 {[%clk 0:02:10]}  h5 {[%clk 0:02:04]} 24. Qd2 {[%clk 0:02:10]}  Kh7 {[%clk 0:02:03]} 25. Qa5 {[%clk 0:02:08]}  Qc8 {[%clk 0:02:01]} 26. Nb6 {[%clk 0:01:57]}  Qxh3+ {[%clk 0:02:00]} 0-1


[Site "https://www.chess.com"]

[Event "Titled Tuesday Blitz December 20 Late 2022"]
[White "Buchenau, Frank"]
[Black "Biernacki, Mark"]
[WhiteFideId "4604350"]
[BlackFideId "2082322"]
[WhiteElo "2157"]
[BlackElo "1970"]
[Result "1-0"]
[Round "02"]
[TimeControl "180+1"]
[Date "2022.12.21"]
[WhiteClock "0:00:12"]
[BlackClock "0:00:02"]

1. e4 {[%clk 0:02:55]}  c5 {[%clk 0:02:59]} 2. Nf3 {[%clk 0:02:55]}  e6 {[%clk 0:02:59]} 3. d4 {[%clk 0:02:54]}  cxd4 {[%clk 0:03:00]} 4. Nxd4 {[%clk 0:02:55]}  Nf6 {[%clk 0:02:59]} 5. Nc3 {[%clk 0:02:48]}  Nc6 {[%clk 0:02:58]} 6. Nxc6 {[%clk 0:02:48]}  bxc6 {[%clk 0:02:59]} 7. e5 {[%clk 0:02:47]}  Nd5 {[%clk 0:03:00]} 8. Ne4 {[%clk 0:02:47]}  Qc7 {[%clk 0:03:00]} 9. f4 {[%clk 0:02:47]}  Qb6 {[%clk 0:02:59]} 10. c4 {[%clk 0:02:46]}  Ne3 {[%clk 0:02:59]} 11. Qd3 {[%clk 0:02:46]}  Nf5 {[%clk 0:02:56]} 12. g4 {[%clk 0:02:09]}  Nd4 {[%clk 0:02:55]} 13. Bg2 {[%clk 0:01:40]}  h5 {[%clk 0:02:53]} 14. h3 {[%clk 0:01:34]}  hxg4 {[%clk 0:02:49]} 15. hxg4 {[%clk 0:01:35]}  Rxh1+ {[%clk 0:02:49]} 16. Bxh1 {[%clk 0:01:36]}  Be7 {[%clk 0:02:47]} 17. Kf1 {[%clk 0:01:34]}  Ba6 {[%clk 0:01:24]} 18. Be3 {[%clk 0:01:27]}  c5 {[%clk 0:01:11]} 19. Nd6+ {[%clk 0:01:19]}  Bxd6 {[%clk 0:01:11]} 20. Bxa8 {[%clk 0:01:18]}  Be7 {[%clk 0:00:55]} 21. b3 {[%clk 0:01:16]}  d5 {[%clk 0:00:45]} 22. exd6 {[%clk 0:01:12]}  Qxd6 {[%clk 0:00:45]} 23. Rd1 {[%clk 0:01:03]}  Bf6 {[%clk 0:00:32]} 24. g5 {[%clk 0:00:57]}  Bd8 {[%clk 0:00:19]} 25. b4 {[%clk 0:00:54]}  Bb6 {[%clk 0:00:18]} 26. b5 {[%clk 0:00:53]}  Bc8 {[%clk 0:00:18]} 27. Qh7 {[%clk 0:00:50]}  e5 {[%clk 0:00:15]} 28. Qg8+ {[%clk 0:00:43]}  Kd7 {[%clk 0:00:11]} 29. Qxf7+ {[%clk 0:00:42]}  Kd8 {[%clk 0:00:11]} 30. Qg8+ {[%clk 0:00:39]}  Kc7 {[%clk 0:00:11]} 31. Qxg7+ {[%clk 0:00:34]}  Kb8 {[%clk 0:00:11]} 32. fxe5 {[%clk 0:00:31]}  Bh3+ {[%clk 0:00:09]} 33. Kg1 {[%clk 0:00:29]}  Qd8 {[%clk 0:00:05]} 34. e6 {[%clk 0:00:22]}  Nf3+ {[%clk 0:00:02]} 35. Kf2 {[%clk 0:00:19]}  Qxd1 {[%clk 0:00:02]} 36. Qf8+ {[%clk 0:00:17]}  Bd8 {[%clk 0:00:02]} 37. Qxf3 {[%clk 0:00:16]}  Qxf3+ {[%clk 0:00:01]} 38. Bxf3 {[%clk 0:00:14]}  Bxe6 {[%clk 0:00:02]} 39. Bd5 {[%clk 0:00:12]} 1-0


[Site "https://www.chess.com"]

[Event "Titled Tuesday Blitz December 20 Late 2022"]
[White "Cabarkapa, Novak"]
[Black "Renjith, Sravan"]
[WhiteFideId "943746"]
[BlackFideId "4306783"]
[WhiteElo "2395"]
[BlackElo "2072"]
[Result "0-1"]
[Round "02"]
[TimeControl "180+1"]
[Date "2022.12.21"]
[WhiteClock "0:00:04"]
[BlackClock "0:00:09"]

1. e4 {[%clk 0:03:00]}  e5 {[%clk 0:02:53]} 2. Nf3 {[%clk 0:03:00]}  Nf6 {[%clk 0:02:53]} 3. Nc3 {[%clk 0:03:00]}  Nc6 {[%clk 0:02:52]} 4. d4 {[%clk 0:03:01]}  exd4 {[%clk 0:02:52]} 5. Nxd4 {[%clk 0:03:02]}  Bb4 {[%clk 0:02:53]} 6. Nxc6 {[%clk 0:03:02]}  bxc6 {[%clk 0:02:54]} 7. Bd3 {[%clk 0:03:02]}  O-O {[%clk 0:02:54]} 8. O-O {[%clk 0:03:02]}  d5 {[%clk 0:02:54]} 9. exd5 {[%clk 0:03:03]}  cxd5 {[%clk 0:02:55]} 10. h3 {[%clk 0:03:03]}  c6 {[%clk 0:02:55]} 11. Qf3 {[%clk 0:03:03]}  h6 {[%clk 0:02:52]} 12. Bf4 {[%clk 0:03:02]}  Be6 {[%clk 0:02:50]} 13. Rfe1 {[%clk 0:02:59]}  c5 {[%clk 0:02:14]} 14. Red1 {[%clk 0:02:43]}  Rc8 {[%clk 0:01:48]} 15. a3 {[%clk 0:02:34]}  Ba5 {[%clk 0:01:47]} 16. Nb5 {[%clk 0:02:31]}  Qd7 {[%clk 0:01:23]} 17. c4 {[%clk 0:02:10]}  a6 {[%clk 0:01:16]} 18. Nc3 {[%clk 0:01:59]}  d4 {[%clk 0:00:38]} 19. Ne2 {[%clk 0:01:32]}  Qe7 {[%clk 0:00:14]} 20. g4 {[%clk 0:01:16]}  Bc7 {[%clk 0:00:14]} 21. Ng3 {[%clk 0:01:12]}  Nd7 {[%clk 0:00:15]} 22. Bxc7 {[%clk 0:01:07]}  Rxc7 {[%clk 0:00:15]} 23. Re1 {[%clk 0:01:07]}  Qf6 {[%clk 0:00:13]} 24. Qe4 {[%clk 0:01:04]}  g6 {[%clk 0:00:13]} 25. Nh5 {[%clk 0:00:59]}  Qg5 {[%clk 0:00:12]} 26. Nf4 {[%clk 0:00:52]}  Re8 {[%clk 0:00:12]} 27. Qf3 {[%clk 0:00:28]}  Ne5 {[%clk 0:00:12]} 28. Qg3 {[%clk 0:00:29]}  Rce7 {[%clk 0:00:11]} 29. Bf1 {[%clk 0:00:18]}  Bc8 {[%clk 0:00:10]} 30. Bg2 {[%clk 0:00:18]}  Nxc4 {[%clk 0:00:09]} 31. Rxe7 {[%clk 0:00:17]}  Qxe7 {[%clk 0:00:09]} 32. Bd5 {[%clk 0:00:17]}  Nd6 {[%clk 0:00:09]} 33. Nxg6 {[%clk 0:00:17]}  Qf6 {[%clk 0:00:08]} 34. Nf4 {[%clk 0:00:17]}  Qe5 {[%clk 0:00:08]} 35. Bg2 {[%clk 0:00:16]}  c4 {[%clk 0:00:09]} 36. Qf3 {[%clk 0:00:17]}  d3 {[%clk 0:00:08]} 37. Nh5 {[%clk 0:00:16]}  Re6 {[%clk 0:00:08]} 38. Qc6 {[%clk 0:00:15]}  Bb7 {[%clk 0:00:08]} 39. Qc7 {[%clk 0:00:14]}  Bxg2 {[%clk 0:00:08]} 40. Kxg2 {[%clk 0:00:14]}  Qd5+ {[%clk 0:00:08]} 41. Kg1 {[%clk 0:00:11]}  d2 {[%clk 0:00:08]} 42. Qd8+ {[%clk 0:00:11]}  Kh7 {[%clk 0:00:09]} 43. Rd1 {[%clk 0:00:06]}  Re1+ {[%clk 0:00:09]} 44. Kh2 {[%clk 0:00:07]}  Qh1+ {[%clk 0:00:09]} 45. Kg3 {[%clk 0:00:08]}  Qg1+ {[%clk 0:00:09]} 46. Kf3 {[%clk 0:00:07]}  Qh1+ {[%clk 0:00:10]} 47. Kg3 {[%clk 0:00:08]}  Rg1+ {[%clk 0:00:09]} 48. Kh4 {[%clk 0:00:06]}  Nf5+ {[%clk 0:00:07]} 49. gxf5 {[%clk 0:00:06]}  Qe4+ {[%clk 0:00:07]} 50. f4 {[%clk 0:00:07]}  Qe1+ {[%clk 0:00:07]} 51. Ng3 {[%clk 0:00:03]}  Qxg3+ {[%clk 0:00:07]} 52. Kh5 {[%clk 0:00:03]}  Qxh3+ {[%clk 0:00:08]} 53. Qh4 {[%clk 0:00:04]}  Qf3+ {[%clk 0:00:08]} 54. Qg4 {[%clk 0:00:04]}  Qxg4# {[%clk 0:00:09]} 0-1


[Site "https://www.chess.com"]

[Event "Titled Tuesday Blitz December 20 Late 2022"]
[White "Carbone, Diego"]
[Black "Onslow, Alfie"]
[WhiteFideId "3002179"]
[BlackFideId "436976"]
[WhiteElo "2266"]
[BlackElo "2015"]
[Result "0-1"]
[Round "02"]
[TimeControl "180+1"]
[Date "2022.12.21"]
[WhiteClock "0:01:08"]
[BlackClock "0:00:21"]

1. d4 {[%clk 0:03:00]}  Nf6 {[%clk 0:02:56]} 2. c4 {[%clk 0:03:01]}  c5 {[%clk 0:02:56]} 3. d5 {[%clk 0:03:01]}  b5 {[%clk 0:02:57]} 4. cxb5 {[%clk 0:03:01]}  a6 {[%clk 0:02:57]} 5. bxa6 {[%clk 0:03:02]}  g6 {[%clk 0:02:57]} 6. Nc3 {[%clk 0:03:02]}  Bg7 {[%clk 0:02:53]} 7. e4 {[%clk 0:03:02]}  O-O {[%clk 0:02:54]} 8. e5 {[%clk 0:03:02]}  Ne8 {[%clk 0:02:53]} 9. h4 {[%clk 0:03:02]}  d6 {[%clk 0:02:50]} 10. e6 {[%clk 0:03:00]}  fxe6 {[%clk 0:02:49]} 11. h5 {[%clk 0:02:59]}  Bxa6 {[%clk 0:02:34]} 12. Bxa6 {[%clk 0:02:47]}  Nxa6 {[%clk 0:02:35]} 13. hxg6 {[%clk 0:02:46]}  hxg6 {[%clk 0:02:33]} 14. Qd3 {[%clk 0:02:45]}  Nb4 {[%clk 0:02:29]} 15. Qxg6 {[%clk 0:02:42]}  Rf6 {[%clk 0:02:18]} 16. Qh7+ {[%clk 0:02:32]}  Kf8 {[%clk 0:02:18]} 17. Bg5 {[%clk 0:02:29]}  exd5 {[%clk 0:02:13]} 18. Nf3 {[%clk 0:02:21]}  Re6+ {[%clk 0:02:09]} 19. Kf1 {[%clk 0:02:20]}  d4 {[%clk 0:01:37]} 20. Ne2 {[%clk 0:02:11]}  Nf6 {[%clk 0:01:32]} 21. Qf5 {[%clk 0:02:01]}  Qd7 {[%clk 0:01:16]} 22. Nf4 {[%clk 0:01:59]}  Re1+ {[%clk 0:01:16]} 23. Rxe1 {[%clk 0:01:55]}  Qxf5 {[%clk 0:01:16]} 24. g3 {[%clk 0:01:48]}  e5 {[%clk 0:01:01]} 25. Nh4 {[%clk 0:01:46]}  Qd7 {[%clk 0:00:48]} 26. Nfg6+ {[%clk 0:01:30]}  Kg8 {[%clk 0:00:43]} 27. a3 {[%clk 0:01:24]}  Nd3 {[%clk 0:00:42]} 28. Re2 {[%clk 0:01:25]}  c4 {[%clk 0:00:38]} 29. Kg2 {[%clk 0:01:23]}  Qg4 {[%clk 0:00:24]} 30. Bd2 {[%clk 0:01:08]}  Qxe2 {[%clk 0:00:21]} 0-1


[Site "https://www.chess.com"]

[Event "Titled Tuesday Blitz December 20 Late 2022"]
[White "ChessBrah"]
[Black "Brodowski, Piotr"]
[BlackFideId "1124480"]
[WhiteElo "2882"]
[BlackElo "2351"]
[Result "1-0"]
[Round "02"]
[TimeControl "180+1"]
[Date "2022.12.21"]
[WhiteClock "0:01:05"]
[BlackClock "0:01:21"]

1. d4 {[%clk 0:02:46]}  d6 {[%clk 0:03:00]} 2. e4 {[%clk 0:02:45]}  g6 {[%clk 0:02:59]} 3. Nc3 {[%clk 0:02:45]}  Bg7 {[%clk 0:02:59]} 4. Be3 {[%clk 0:02:45]}  a6 {[%clk 0:02:58]} 5. Qd2 {[%clk 0:02:45]}  b5 {[%clk 0:02:59]} 6. f3 {[%clk 0:02:46]}  Bb7 {[%clk 0:02:59]} 7. h4 {[%clk 0:02:46]}  h6 {[%clk 0:02:58]} 8. Nh3 {[%clk 0:02:44]}  Nd7 {[%clk 0:02:58]} 9. O-O-O {[%clk 0:02:23]}  c5 {[%clk 0:02:52]} 10. dxc5 {[%clk 0:02:15]}  Nxc5 {[%clk 0:02:52]} 11. Bd4 {[%clk 0:02:12]}  Ne6 {[%clk 0:02:02]} 12. Bxg7 {[%clk 0:02:11]}  Nxg7 {[%clk 0:02:03]} 13. Kb1 {[%clk 0:02:01]}  Nf6 {[%clk 0:02:02]} 14. Nf2 {[%clk 0:01:17]}  h5 {[%clk 0:01:57]} 15. Nh3 {[%clk 0:01:16]}  Ne6 {[%clk 0:01:55]} 16. Ng5 {[%clk 0:01:16]}  Nxg5 {[%clk 0:01:55]} 17. hxg5 {[%clk 0:01:17]}  Nd7 {[%clk 0:01:55]} 18. g4 {[%clk 0:01:17]}  h4 {[%clk 0:01:47]} 19. Qd4 {[%clk 0:01:13]}  e5 {[%clk 0:01:44]} 20. Qxd6 {[%clk 0:01:11]}  Rc8 {[%clk 0:01:39]} 21. Nxb5 {[%clk 0:01:05]}  axb5 {[%clk 0:01:21]} 22. Bxb5 {[%clk 0:01:05]}  Rc7 {[%clk 0:01:21]} 23. Qxe5+ {[%clk 0:01:05]} 1-0


[Site "https://www.chess.com"]

[Event "Titled Tuesday Blitz December 20 Late 2022"]
[White "Crevatin, Leo"]
[Black "Sanchez, Robert"]
[WhiteFideId "1726307"]
[BlackFideId "2034360"]
[WhiteElo "2190"]
[BlackElo "2371"]
[Result "0-1"]
[Round "02"]
[TimeControl "180+1"]
[Date "2022.12.21"]
[WhiteClock "0:00:18"]
[BlackClock "0:00:26"]

1. e4 {[%clk 0:03:00]}  c6 {[%clk 0:02:56]} 2. Nf3 {[%clk 0:03:00]}  d5 {[%clk 0:02:55]} 3. Nc3 {[%clk 0:03:01]}  Nf6 {[%clk 0:02:54]} 4. e5 {[%clk 0:03:00]}  Ng8 {[%clk 0:02:51]} 5. d4 {[%clk 0:02:59]}  e6 {[%clk 0:02:50]} 6. Be3 {[%clk 0:02:51]}  Nd7 {[%clk 0:02:49]} 7. Ne2 {[%clk 0:02:44]}  Ne7 {[%clk 0:02:47]} 8. c3 {[%clk 0:02:41]}  Nf5 {[%clk 0:02:47]} 9. Bg5 {[%clk 0:02:41]}  f6 {[%clk 0:02:43]} 10. exf6 {[%clk 0:02:41]}  gxf6 {[%clk 0:02:43]} 11. Bf4 {[%clk 0:02:41]}  Qb6 {[%clk 0:02:34]} 12. Qc2 {[%clk 0:02:38]}  c5 {[%clk 0:02:20]} 13. Ng3 {[%clk 0:02:24]}  Nxg3 {[%clk 0:02:10]} 14. hxg3 {[%clk 0:02:25]}  cxd4 {[%clk 0:02:09]} 15. Nxd4 {[%clk 0:02:01]}  e5 {[%clk 0:01:57]} 16. Qe2 {[%clk 0:01:28]}  Kd8 {[%clk 0:01:51]} 17. Be3 {[%clk 0:01:25]}  exd4 {[%clk 0:01:48]} 18. Bxd4 {[%clk 0:01:26]}  Bc5 {[%clk 0:01:46]} 19. O-O-O {[%clk 0:01:25]}  Re8 {[%clk 0:01:31]} 20. Qh5 {[%clk 0:01:18]}  Bxd4 {[%clk 0:01:11]} 21. Rxd4 {[%clk 0:01:19]}  Re5 {[%clk 0:01:11]} 22. Qxh7 {[%clk 0:01:16]}  Qe6 {[%clk 0:00:58]} 23. Bd3 {[%clk 0:00:55]}  Re1+ {[%clk 0:00:57]} 24. Kc2 {[%clk 0:00:55]}  Kc7 {[%clk 0:00:52]} 25. Bf5 {[%clk 0:00:43]}  Rxh1 {[%clk 0:00:40]} 26. Qxh1 {[%clk 0:00:38]}  Qxf5+ {[%clk 0:00:40]} 27. Kc1 {[%clk 0:00:38]}  Nb6 {[%clk 0:00:34]} 28. Rf4 {[%clk 0:00:36]}  Qe5 {[%clk 0:00:32]} 29. Qh7+ {[%clk 0:00:32]}  Bd7 {[%clk 0:00:32]} 30. Rf3 {[%clk 0:00:25]}  Qe1+ {[%clk 0:00:29]} 31. Kc2 {[%clk 0:00:24]}  Re8 {[%clk 0:00:28]} 32. Re3 {[%clk 0:00:18]}  Qxf2+ {[%clk 0:00:26]} 0-1


[Site "https://www.chess.com"]

[Event "Titled Tuesday Blitz December 20 Late 2022"]
[White "D`Arruda, Ricardo D."]
[Black "Martins Jr Sobrinho, Manuel De"]
[WhiteFideId "100692"]
[BlackFideId "2170310"]
[WhiteElo "2425"]
[BlackElo "1924"]
[Result "1-0"]
[Round "02"]
[TimeControl "180+1"]
[Date "2022.12.21"]
[WhiteClock "0:01:03"]
[BlackClock "0:00:49"]

1. d4 {[%clk 0:02:11]}  Nf6 {[%clk 0:02:57]} 2. Nf3 {[%clk 0:02:12]}  c5 {[%clk 0:02:57]} 3. g3 {[%clk 0:02:13]}  cxd4 {[%clk 0:02:57]} 4. Bg2 {[%clk 0:02:13]}  e5 {[%clk 0:02:57]} 5. O-O {[%clk 0:02:12]}  Nc6 {[%clk 0:02:57]} 6. c3 {[%clk 0:02:12]}  dxc3 {[%clk 0:02:57]} 7. Nxc3 {[%clk 0:02:13]}  d5 {[%clk 0:02:57]} 8. Bg5 {[%clk 0:02:13]}  d4 {[%clk 0:02:57]} 9. Ne4 {[%clk 0:02:12]}  Be7 {[%clk 0:02:57]} 10. Nxf6+ {[%clk 0:02:10]}  Bxf6 {[%clk 0:02:57]} 11. Bxf6 {[%clk 0:02:11]}  Qxf6 {[%clk 0:02:56]} 12. b4 {[%clk 0:02:07]}  O-O {[%clk 0:02:37]} 13. b5 {[%clk 0:02:06]}  Ne7 {[%clk 0:02:34]} 14. Rc1 {[%clk 0:02:02]}  Bd7 {[%clk 0:02:29]} 15. Qb3 {[%clk 0:01:59]}  Rfc8 {[%clk 0:02:28]} 16. Nd2 {[%clk 0:01:59]}  Qb6 {[%clk 0:02:20]} 17. a4 {[%clk 0:01:58]}  Be6 {[%clk 0:02:15]} 18. Qa3 {[%clk 0:01:42]}  Nf5 {[%clk 0:02:07]} 19. Ne4 {[%clk 0:01:31]}  h5 {[%clk 0:01:57]} 20. Nc5 {[%clk 0:01:29]}  Nd6 {[%clk 0:01:46]} 21. Nxe6 {[%clk 0:01:27]}  fxe6 {[%clk 0:01:46]} 22. Qf3 {[%clk 0:01:17]}  g6 {[%clk 0:01:44]} 23. Qf6 {[%clk 0:01:16]}  Kh7 {[%clk 0:01:39]} 24. Qxe6 {[%clk 0:01:12]}  Re8 {[%clk 0:01:33]} 25. Qd7+ {[%clk 0:01:12]}  Kh8 {[%clk 0:01:30]} 26. Rc7 {[%clk 0:01:12]}  Qxc7 {[%clk 0:01:13]} 27. Qxc7 {[%clk 0:01:12]}  Re6 {[%clk 0:00:52]} 28. Bd5 {[%clk 0:01:07]}  Rf6 {[%clk 0:00:50]} 29. Qe7 {[%clk 0:01:07]}  Raf8 {[%clk 0:00:49]} 30. Qxe5 {[%clk 0:01:06]}  Kh7 {[%clk 0:00:49]} 31. f4 {[%clk 0:01:03]} 1-0


[Site "https://www.chess.com"]